[Event "Early-Titled-Tuesday-Blitz-February-06-2024"]
[Site "Chess.com"]
[Date "2024.02.06"]
[Round "7"]
[White "maciek_92"]
[Black "HajiyevKanan"]
[Result "0-1"]
[WhiteElo "2777"]
[BlackElo "2621"]
[TimeControl "180+1"]
[EndTime "9:18:52 PST"]
[Termination "HajiyevKanan won on time"]

1. e4 {[%clk 0:03:00.9]} 1... c6 {[%clk 0:02:57.8]} 2. Nc3 {[%clk 0:02:55.4]}
2... d5 {[%clk 0:02:58.7]} 3. d3 {[%clk 0:02:52.1]} 3... dxe4 {[%clk 0:02:55.8]}
4. Nxe4 {[%clk 0:02:50.1]} 4... Nf6 {[%clk 0:02:54.1]} 5. Nxf6+ {[%clk
0:02:45.4]} 5... exf6 {[%clk 0:02:55]} 6. g3 {[%clk 0:02:43.8]} 6... Bc5 {[%clk
0:02:52.9]} 7. Bg2 {[%clk 0:02:44]} 7... O-O {[%clk 0:02:53]} 8. Ne2 {[%clk
0:02:42.2]} 8... Bg4 {[%clk 0:02:52.7]} 9. f3 {[%clk 0:02:35.7]} 9... Bh5 {[%clk
0:02:49.7]} 10. d4 {[%clk 0:02:35]} 10... Bd6 {[%clk 0:02:21.5]} 11. O-O {[%clk
0:02:31.8]} 11... Nd7 {[%clk 0:02:20.8]} 12. g4 {[%clk 0:02:26.5]} 12... Bg6
{[%clk 0:02:20.9]} 13. f4 {[%clk 0:02:26.9]} 13... f5 {[%clk 0:02:09.2]} 14. Ng3
{[%clk 0:02:26.8]} 14... f6 {[%clk 0:01:46.2]} 15. gxf5 {[%clk 0:02:19.3]} 15...
Bf7 {[%clk 0:01:46.3]} 16. Qg4 {[%clk 0:02:11.7]} 16... Re8 {[%clk 0:01:38.2]}
17. b3 {[%clk 0:02:00.6]} 17... Qa5 {[%clk 0:01:22.5]} 18. Bb2 {[%clk
0:01:40.2]} 18... Qd2 {[%clk 0:01:22.1]} 19. Rf2 {[%clk 0:01:40.1]} 19... Re1+
{[%clk 0:01:10.6]} 20. Nf1 {[%clk 0:01:39.7]} 20... Qa5 {[%clk 0:00:56.4]} 21.
Rxe1 {[%clk 0:01:34.3]} 21... Qxe1 {[%clk 0:00:55.7]} 22. Re2 {[%clk 0:01:35]}
22... Qb1 {[%clk 0:00:48.4]} 23. c4 {[%clk 0:01:31.8]} 23... Re8 {[%clk
0:00:37.3]} 24. Rxe8+ {[%clk 0:01:29.7]} 24... Bxe8 {[%clk 0:00:38.2]} 25. Qe2
{[%clk 0:01:29.6]} 25... Bf7 {[%clk 0:00:36.2]} 26. Bc3 {[%clk 0:01:28.2]} 26...
Qxf5 {[%clk 0:00:31.4]} 27. Bd2 {[%clk 0:00:54.7]} 27... h5 {[%clk 0:00:08.6]}
28. Ng3 {[%clk 0:00:49]} 28... Qb1+ {[%clk 0:00:07.1]} 29. Kf2 {[%clk
0:00:47.4]} 29... Qxa2 {[%clk 0:00:07.1]} 30. Nf5 {[%clk 0:00:47.4]} 30... Bf8
{[%clk 0:00:03.5]} 31. Be4 {[%clk 0:00:17.1]} 31... g6 {[%clk 0:00:03.2]} 32.
Bd3 {[%clk 0:00:18]} 32... gxf5 {[%clk 0:00:03]} 33. Bxf5 {[%clk 0:00:15.3]}
33... Nb8 {[%clk 0:00:02.2]} 34. Kg1 {[%clk 0:00:08.9]} 34... Qxb3 {[%clk
0:00:02.4]} 35. Be3 {[%clk 0:00:07]} 35... Qxc4 {[%clk 0:00:02.7]} 36. Qg2+
{[%clk 0:00:07.3]} 36... Bg7 {[%clk 0:00:02]} 37. Be4 {[%clk 0:00:06]} 37... f5
{[%clk 0:00:01.5]} 38. Bxf5 {[%clk 0:00:05.8]} 38... Kf8 {[%clk 0:00:02]} 39.
Be4 {[%clk 0:00:04.1]} 39... Bxd4 {[%clk 0:00:02.4]} 40. Qf3 {[%clk 0:00:02.7]}
40... Qc5 {[%clk 0:00:02.4]} 41. Bxd4 {[%clk 0:00:02.7]} 41... Qxd4+ {[%clk
0:00:03.3]} 42. Kf1 {[%clk 0:00:03.4]} 42... Bd5 {[%clk 0:00:03.7]} 43. Bxd5
{[%clk 0:00:01.5]} 43... Qxd5 {[%clk 0:00:04.6]} 44. Qg3 {[%clk 0:00:02.1]}
44... Nd7 {[%clk 0:00:04.1]} 45. Qg6 {[%clk 0:00:01.6]} 45... Qf7 {[%clk
0:00:03.5]} 46. Qd6+ {[%clk 0:00:01.5]} 46... Kg7 {[%clk 0:00:04.1]} 47. Qc7
{[%clk 0:00:02.4]} 47... Nf6 {[%clk 0:00:04.1]} 48. Qe5 {[%clk 0:00:01.9]} 48...
Kg6 {[%clk 0:00:04.1]} 49. Qg5+ {[%clk 0:00:02.3]} 49... Kh7 {[%clk 0:00:04.9]}
50. Qf5+ {[%clk 0:00:03.1]} 50... Kg7 {[%clk 0:00:05]} 51. Qg5+ {[%clk
0:00:03.4]} 51... Kf8 {[%clk 0:00:05.7]} 52. Qe5 {[%clk 0:00:04.3]} 52... Qe7
{[%clk 0:00:05.5]} 53. Qb8+ {[%clk 0:00:04.2]} 53... Kf7 {[%clk 0:00:06]} 54.
Qxa7 {[%clk 0:00:05.1]} 54... Nd5 {[%clk 0:00:06.2]} 55. Qd4 {[%clk 0:00:05]}
55... Qe3 {[%clk 0:00:06]} 56. Qa7 {[%clk 0:00:05.8]} 56... Qxf4+ {[%clk
0:00:05.7]} 57. Ke2 {[%clk 0:00:03.9]} 57... Qe4+ {[%clk 0:00:06.3]} 58. Kf2
{[%clk 0:00:03.6]} 58... Qc2+ {[%clk 0:00:05.9]} 59. Kg3 {[%clk 0:00:03.5]}
59... Qb3+ {[%clk 0:00:06.3]} 60. Kh4 {[%clk 0:00:03]} 60... Nf6 {[%clk
0:00:07.1]} 61. Qb8 {[%clk 0:00:02.1]} 61... Kg6 {[%clk 0:00:06.9]} 0-1

[Event "Early-Titled-Tuesday-Blitz-February-06-2024"]
[Site "Chess.com"]
[Date "2024.02.06"]
[Round "7"]
[White "Bauman_Guy"]
[Black "artooon"]
[Result "1/2-1/2"]
[WhiteElo "2867"]
[BlackElo "3040"]
[TimeControl "180+1"]
[EndTime "9:19:01 PST"]
[Termination "Game drawn by repetition"]

1. e4 {[%clk 0:03:00.9]} 1... e5 {[%clk 0:02:58.2]} 2. Nf3 {[%clk 0:03:01.2]}
2... Nc6 {[%clk 0:02:57.5]} 3. Bb5 {[%clk 0:03:01.9]} 3... a6 {[%clk 0:02:57.6]}
4. Ba4 {[%clk 0:03:01.9]} 4... Nf6 {[%clk 0:02:57.3]} 5. O-O {[%clk 0:03:02.4]}
5... Bc5 {[%clk 0:02:56.1]} 6. Nc3 {[%clk 0:03:01.9]} 6... O-O {[%clk
0:02:55.3]} 7. d3 {[%clk 0:03:02.2]} 7... d6 {[%clk 0:02:54.3]} 8. Bg5 {[%clk
0:02:58.4]} 8... h6 {[%clk 0:02:54.2]} 9. Bh4 {[%clk 0:02:58.7]} 9... Bg4 {[%clk
0:02:53.4]} 10. h3 {[%clk 0:02:56.7]} 10... Bxf3 {[%clk 0:02:45.8]} 11. Qxf3
{[%clk 0:02:57.6]} 11... Nd4 {[%clk 0:02:46.4]} 12. Qd1 {[%clk 0:02:57.5]} 12...
c6 {[%clk 0:02:42.3]} 13. Ne2 {[%clk 0:02:50.8]} 13... g5 {[%clk 0:02:38.8]} 14.
Bg3 {[%clk 0:02:41.1]} 14... Ne6 {[%clk 0:02:31.4]} 15. c3 {[%clk 0:02:37.1]}
15... Ba7 {[%clk 0:02:27.6]} 16. Bc2 {[%clk 0:02:34.3]} 16... Nf4 {[%clk
0:02:24.7]} 17. Kh1 {[%clk 0:02:32.3]} 17... Qe7 {[%clk 0:02:19.3]} 18. Bh2
{[%clk 0:02:30.6]} 18... Nxe2 {[%clk 0:02:05]} 19. Qxe2 {[%clk 0:02:31.5]} 19...
Rae8 {[%clk 0:01:57.1]} 20. Rae1 {[%clk 0:02:26.6]} 20... Bb8 {[%clk 0:01:31.1]}
21. d4 {[%clk 0:02:17.6]} 21... Nd7 {[%clk 0:01:08.9]} 22. dxe5 {[%clk
0:02:09.9]} 22... dxe5 {[%clk 0:01:09.8]} 23. Rd1 {[%clk 0:02:02.5]} 23... Nc5
{[%clk 0:01:09.2]} 24. b4 {[%clk 0:01:48.7]} 24... Ne6 {[%clk 0:01:08.2]} 25.
Bb3 {[%clk 0:01:48.3]} 25... Nf4 {[%clk 0:01:06.1]} 26. Qf3 {[%clk 0:01:47.8]}
26... Rd8 {[%clk 0:01:04.1]} 27. g3 {[%clk 0:01:40.4]} 27... Ng6 {[%clk
0:01:02.6]} 28. Kg2 {[%clk 0:01:35.2]} 28... Kg7 {[%clk 0:01:02.6]} 29. Qf5
{[%clk 0:01:10.8]} 29... Bc7 {[%clk 0:00:51.7]} 30. a4 {[%clk 0:01:03.5]} 30...
a5 {[%clk 0:00:50.4]} 31. b5 {[%clk 0:00:58.8]} 31... Qc5 {[%clk 0:00:45.3]} 32.
Rd7 {[%clk 0:00:28.4]} 32... Rxd7 {[%clk 0:00:36.7]} 33. Qxd7 {[%clk 0:00:29.3]}
33... Qxc3 {[%clk 0:00:37.4]} 34. Rb1 {[%clk 0:00:25.9]} 34... cxb5 {[%clk
0:00:34]} 35. Qxb5 {[%clk 0:00:22.8]} 35... Rd8 {[%clk 0:00:24.6]} 36. Qxb7
{[%clk 0:00:19]} 36... Rd2 {[%clk 0:00:24.4]} 37. Bg1 {[%clk 0:00:17.7]} 37...
Nh8 {[%clk 0:00:15.7]} 38. Rd1 {[%clk 0:00:12.1]} 38... Rb2 {[%clk 0:00:12.7]}
39. Rd7 {[%clk 0:00:09.1]} 39... Rxb3 {[%clk 0:00:13.2]} 40. Qxc7 {[%clk
0:00:08.9]} 40... Qf3+ {[%clk 0:00:12]} 41. Kh2 {[%clk 0:00:09.3]} 41... Qxe4
{[%clk 0:00:12.9]} 42. Qxa5 {[%clk 0:00:08.8]} 42... Rb1 {[%clk 0:00:11]} 43.
Qd5 {[%clk 0:00:08.9]} 43... Qe1 {[%clk 0:00:10.4]} 44. Qg2 {[%clk 0:00:06.8]}
44... Ra1 {[%clk 0:00:11]} 45. Ra7 {[%clk 0:00:04.3]} 45... e4 {[%clk
0:00:11.5]} 46. Re7 {[%clk 0:00:03.7]} 46... Rxa4 {[%clk 0:00:11]} 47. f3 {[%clk
0:00:04.2]} 47... Ng6 {[%clk 0:00:06.2]} 48. Rxe4 {[%clk 0:00:04.1]} 48... Rxe4
{[%clk 0:00:06.9]} 49. fxe4 {[%clk 0:00:05]} 49... Kg8 {[%clk 0:00:05.5]} 50.
Bd4 {[%clk 0:00:05]} 50... Qd1 {[%clk 0:00:04.4]} 51. Qf2 {[%clk 0:00:05.4]}
51... Qd3 {[%clk 0:00:04.3]} 52. Qf6 {[%clk 0:00:05]} 52... Qe2+ {[%clk
0:00:05]} 53. Kg1 {[%clk 0:00:04]} 53... Qd1+ {[%clk 0:00:05.4]} 54. Kh2 {[%clk
0:00:04.3]} 54... Qd2+ {[%clk 0:00:05.8]} 55. Kg1 {[%clk 0:00:03.9]} 55... Qc1+
{[%clk 0:00:06.5]} 56. Kh2 {[%clk 0:00:03.8]} 56... Qc2+ {[%clk 0:00:07.2]} 57.
Kg1 {[%clk 0:00:04]} 57... Qb1+ {[%clk 0:00:07.8]} 58. Kh2 {[%clk 0:00:04.3]}
58... Qc2+ {[%clk 0:00:06.4]} 59. Kg1 {[%clk 0:00:04.7]} 59... Qd1+ {[%clk
0:00:06.5]} 60. Kh2 {[%clk 0:00:05.1]} 60... Qd2+ {[%clk 0:00:07.2]} 61. Kg1
{[%clk 0:00:05.4]} 61... Qe1+ {[%clk 0:00:07.8]} 62. Kh2 {[%clk 0:00:05.8]}
62... Qe2+ {[%clk 0:00:05.2]} 63. Kg1 {[%clk 0:00:05.8]} 63... Qd1+ {[%clk
0:00:05.5]} 1/2-1/2

[Event "Early-Titled-Tuesday-Blitz-February-06-2024"]
[Site "Chess.com"]
[Date "2024.02.06"]
[Round "7"]
[White "ExchangeAB"]
[Black "Lady_Nika"]
[Result "1/2-1/2"]
[WhiteElo "2431"]
[BlackElo "2581"]
[TimeControl "180+1"]
[EndTime "9:19:01 PST"]
[Termination "Game drawn - insufficient material"]

1. d4 {[%clk 0:03:00.9]} 1... d5 {[%clk 0:02:59.9]} 2. Nf3 {[%clk 0:03:00.7]}
2... e6 {[%clk 0:03:00]} 3. Bf4 {[%clk 0:03:00.8]} 3... f5 {[%clk 0:02:59.8]} 4.
e3 {[%clk 0:03:00.2]} 4... Nf6 {[%clk 0:02:59.3]} 5. Nbd2 {[%clk 0:02:57]} 5...
Bd6 {[%clk 0:02:59.2]} 6. c3 {[%clk 0:02:51.1]} 6... O-O {[%clk 0:02:58.5]} 7.
Bd3 {[%clk 0:02:50.9]} 7... Qe7 {[%clk 0:02:58.1]} 8. O-O {[%clk 0:02:50.2]}
8... Nbd7 {[%clk 0:02:57.6]} 9. h3 {[%clk 0:02:47.7]} 9... Ne4 {[%clk
0:02:57.6]} 10. c4 {[%clk 0:02:33.9]} 10... c6 {[%clk 0:02:55.7]} 11. Bxd6
{[%clk 0:02:29.7]} 11... Qxd6 {[%clk 0:02:55.1]} 12. Rc1 {[%clk 0:02:23.8]}
12... Nxd2 {[%clk 0:02:38.2]} 13. Qxd2 {[%clk 0:02:22.9]} 13... Nf6 {[%clk
0:02:38.1]} 14. Ne5 {[%clk 0:02:22.4]} 14... Bd7 {[%clk 0:02:37.7]} 15. Qc2
{[%clk 0:02:15.3]} 15... Ne4 {[%clk 0:02:35.8]} 16. Bxe4 {[%clk 0:02:14.4]}
16... fxe4 {[%clk 0:02:35.8]} 17. f4 {[%clk 0:02:10.4]} 17... exf3 {[%clk
0:02:35.6]} 18. Rxf3 {[%clk 0:02:09.8]} 18... Rxf3 {[%clk 0:02:35.5]} 19. Nxf3
{[%clk 0:02:10.7]} 19... Rf8 {[%clk 0:02:35.7]} 20. Ne5 {[%clk 0:02:10.5]} 20...
Be8 {[%clk 0:02:35.6]} 21. Rf1 {[%clk 0:02:06.7]} 21... Rxf1+ {[%clk 0:02:33.4]}
22. Kxf1 {[%clk 0:02:07.6]} 22... Qe7 {[%clk 0:02:28.7]} 23. c5 {[%clk
0:02:00.9]} 23... Qg5 {[%clk 0:02:25.9]} 24. Qf2 {[%clk 0:02:00]} 24... h6
{[%clk 0:02:13.3]} 25. Qf4 {[%clk 0:01:59.2]} 25... Qh5 {[%clk 0:02:11.1]} 26.
Qg4 {[%clk 0:01:45.3]} 26... Qxg4 {[%clk 0:01:52]} 27. hxg4 {[%clk 0:01:35.3]}
27... Kf8 {[%clk 0:01:52]} 28. Kf2 {[%clk 0:01:33.2]} 28... Ke7 {[%clk
0:01:46.5]} 29. Kf3 {[%clk 0:01:33.3]} 29... Kf6 {[%clk 0:01:39.2]} 30. Kf4
{[%clk 0:01:33.2]} 30... g5+ {[%clk 0:01:33.2]} 31. Kf3 {[%clk 0:01:29.6]} 31...
Ke7 {[%clk 0:01:33.4]} 32. Ke2 {[%clk 0:01:27.7]} 32... Kd8 {[%clk 0:01:33.3]}
33. Kd2 {[%clk 0:01:27.8]} 33... Kc7 {[%clk 0:01:32.6]} 34. Kc3 {[%clk
0:01:28.1]} 34... b6 {[%clk 0:01:26.6]} 35. Kb4 {[%clk 0:01:23.5]} 35... Kb7
{[%clk 0:01:10.3]} 36. a4 {[%clk 0:01:10.8]} 36... a5+ {[%clk 0:01:09.4]} 37.
Kc3 {[%clk 0:01:10.3]} 37... Ka6 {[%clk 0:01:07]} 38. cxb6 {[%clk 0:01:05.3]}
38... Kxb6 {[%clk 0:01:06.9]} 39. b4 {[%clk 0:01:05.8]} 39... Ka6 {[%clk
0:01:03.8]} 40. Nd3 {[%clk 0:01:02.2]} 40... Bg6 {[%clk 0:00:46.2]} 41. Ne5
{[%clk 0:01:01]} 41... Be4 {[%clk 0:00:38.8]} 42. g3 {[%clk 0:01:01.1]} 42...
axb4+ {[%clk 0:00:31.5]} 43. Kxb4 {[%clk 0:01:01]} 43... Kb6 {[%clk 0:00:26.9]}
44. a5+ {[%clk 0:01:01.1]} 44... Ka6 {[%clk 0:00:27.2]} 45. Nxc6 {[%clk
0:01:00.9]} 45... Bd3 {[%clk 0:00:19.3]} 46. Ne5 {[%clk 0:00:56.5]} 46... Be2
{[%clk 0:00:19.2]} 47. Kc5 {[%clk 0:00:51.3]} 47... Bf1 {[%clk 0:00:17.6]} 48.
Kd6 {[%clk 0:00:51.2]} 48... Kxa5 {[%clk 0:00:18]} 49. Kxe6 {[%clk 0:00:51.6]}
49... Bc4 {[%clk 0:00:15.1]} 50. Nf7 {[%clk 0:00:48.2]} 50... Kb4 {[%clk
0:00:14.4]} 51. Nxh6 {[%clk 0:00:48.6]} 51... Kc3 {[%clk 0:00:14.4]} 52. Nf5
{[%clk 0:00:46.7]} 52... Kd3 {[%clk 0:00:13.2]} 53. Kf6 {[%clk 0:00:47]} 53...
Ke4 {[%clk 0:00:09.8]} 54. Kxg5 {[%clk 0:00:47.4]} 54... Be2 {[%clk 0:00:09.2]}
55. Kh4 {[%clk 0:00:38.6]} 55... Bd1 {[%clk 0:00:09.2]} 56. Nd6+ {[%clk
0:00:37.1]} 56... Kxe3 {[%clk 0:00:09.1]} 57. g5 {[%clk 0:00:37.7]} 57... Bc2
{[%clk 0:00:08.7]} 58. Nb5 {[%clk 0:00:33.4]} 58... Bd3 {[%clk 0:00:08]} 59. g6
{[%clk 0:00:17.4]} 59... Bxg6 {[%clk 0:00:07.5]} 60. Kg5 {[%clk 0:00:14.7]}
60... Bd3 {[%clk 0:00:07.6]} 61. Nc7 {[%clk 0:00:13.3]} 61... Kxd4 {[%clk
0:00:07.8]} 62. Nxd5 {[%clk 0:00:08.6]} 62... Kxd5 {[%clk 0:00:08.1]} 63. Kf6
{[%clk 0:00:08.8]} 63... Bb1 {[%clk 0:00:08.5]} 64. g4 {[%clk 0:00:09.7]} 64...
Bc2 {[%clk 0:00:09]} 65. g5 {[%clk 0:00:10.6]} 65... Bd3 {[%clk 0:00:09.4]} 66.
g6 {[%clk 0:00:10.3]} 66... Bxg6 {[%clk 0:00:09.7]} 1/2-1/2

[Event "Early-Titled-Tuesday-Blitz-February-06-2024"]
[Site "Chess.com"]
[Date "2024.02.06"]
[Round "7"]
[White "vishwa_vijeta"]
[Black "pavet"]
[Result "1/2-1/2"]
[WhiteElo "2582"]
[BlackElo "2767"]
[TimeControl "180+1"]
[EndTime "9:19:02 PST"]
[Termination "Game drawn by repetition"]

1. e4 {[%clk 0:03:00.9]} 1... e5 {[%clk 0:02:59.5]} 2. Nf3 {[%clk 0:02:59.7]}
2... Nc6 {[%clk 0:02:59.7]} 3. d4 {[%clk 0:03:00.1]} 3... exd4 {[%clk
0:02:59.5]} 4. Bc4 {[%clk 0:03:00.7]} 4... Nf6 {[%clk 0:02:59.4]} 5. Ng5 {[%clk
0:03:01]} 5... Ne5 {[%clk 0:02:39.6]} 6. Qxd4 {[%clk 0:02:59.9]} 6... Nxc4
{[%clk 0:02:36.1]} 7. Qxc4 {[%clk 0:03:00.8]} 7... d5 {[%clk 0:02:35.9]} 8. exd5
{[%clk 0:03:01.7]} 8... Qxd5 {[%clk 0:02:35.7]} 9. Qe2+ {[%clk 0:03:02]} 9...
Be6 {[%clk 0:02:34.7]} 10. Nc3 {[%clk 0:02:57.7]} 10... Bb4 {[%clk 0:02:34.1]}
11. O-O {[%clk 0:02:52.1]} 11... Bxc3 {[%clk 0:02:34.3]} 12. Nxe6 {[%clk
0:02:50.9]} 12... Qxe6 {[%clk 0:02:33]} 13. Qb5+ {[%clk 0:02:39.3]} 13... Qc6
{[%clk 0:02:26.4]} 14. Qxc6+ {[%clk 0:02:37.7]} 14... bxc6 {[%clk 0:02:26.8]}
15. bxc3 {[%clk 0:02:38.4]} 15... O-O-O {[%clk 0:02:27.7]} 16. Be3 {[%clk
0:02:33.1]} 16... Nd5 {[%clk 0:02:25.6]} 17. Bd4 {[%clk 0:02:19]} 17... f6
{[%clk 0:02:25.6]} 18. Rad1 {[%clk 0:02:16.4]} 18... a6 {[%clk 0:02:22.7]} 19.
Rfe1 {[%clk 0:02:15.7]} 19... Rhe8 {[%clk 0:02:21.9]} 20. Rxe8 {[%clk 0:02:14]}
20... Rxe8 {[%clk 0:02:22.8]} 21. Kf1 {[%clk 0:02:14.3]} 21... Rd8 {[%clk
0:02:23.1]} 22. Rd2 {[%clk 0:02:10.1]} 22... Nb6 {[%clk 0:01:59.8]} 23. Re2
{[%clk 0:02:07]} 23... Rd7 {[%clk 0:01:50.3]} 24. Re6 {[%clk 0:01:59]} 24... Kb7
{[%clk 0:01:49.9]} 25. Ke2 {[%clk 0:01:58.7]} 25... Nc4 {[%clk 0:01:49.4]} 26.
g3 {[%clk 0:01:52.7]} 26... Nd6 {[%clk 0:01:49.2]} 27. Bc5 {[%clk 0:01:48.5]}
27... Nb5 {[%clk 0:01:47]} 28. Re3 {[%clk 0:01:45.1]} 28... Nd6 {[%clk
0:01:43.7]} 29. Bxd6 {[%clk 0:01:43.7]} 29... cxd6 {[%clk 0:01:42.9]} 30. c4
{[%clk 0:01:43.4]} 30... Kb6 {[%clk 0:01:42.9]} 31. Re8 {[%clk 0:01:40.8]} 31...
Kc5 {[%clk 0:01:42.4]} 32. Kd3 {[%clk 0:01:40.7]} 32... a5 {[%clk 0:01:38.3]}
33. Kc3 {[%clk 0:01:40.4]} 33... d5 {[%clk 0:01:33.2]} 34. cxd5 {[%clk
0:01:38.7]} 34... Rxd5 {[%clk 0:01:32.7]} 35. Re7 {[%clk 0:01:35.4]} 35... Rf5
{[%clk 0:01:32.3]} 36. f4 {[%clk 0:01:34.3]} 36... g5 {[%clk 0:01:31.7]} 37.
fxg5 {[%clk 0:01:34.2]} 37... fxg5 {[%clk 0:01:31.7]} 38. Rxh7 {[%clk
0:01:34.3]} 38... Rf3+ {[%clk 0:01:31.2]} 39. Kb2 {[%clk 0:01:31.8]} 39... a4
{[%clk 0:01:30.8]} 40. Rh5 {[%clk 0:01:30.9]} 40... a3+ {[%clk 0:01:29.6]} 41.
Kc1 {[%clk 0:01:31.1]} 41... Kc4 {[%clk 0:01:30.1]} 42. Rxg5 {[%clk 0:01:29.6]}
42... Rf1+ {[%clk 0:01:30.5]} 43. Kd2 {[%clk 0:01:29.1]} 43... Ra1 {[%clk
0:01:31.4]} 44. Ra5 {[%clk 0:01:17.6]} 44... Rxa2 {[%clk 0:01:30.4]} 45. h4
{[%clk 0:01:17.5]} 45... Ra1 {[%clk 0:01:30]} 46. h5 {[%clk 0:01:16.9]} 46...
Kb4 {[%clk 0:01:29]} 47. Ra8 {[%clk 0:01:16.1]} 47... Rh1 {[%clk 0:01:28.9]} 48.
g4 {[%clk 0:01:14.9]} 48... Rh4 {[%clk 0:01:28.4]} 49. c3+ {[%clk 0:01:02.3]}
49... Kb3 {[%clk 0:01:23.5]} 50. Rb8+ {[%clk 0:01:01.9]} 50... Ka2 {[%clk
0:01:22.6]} 51. Rb4 {[%clk 0:00:58.9]} 51... c5 {[%clk 0:01:15.8]} 52. Ra4
{[%clk 0:00:48.6]} 52... Kb3 {[%clk 0:01:05.9]} 53. Ra6 {[%clk 0:00:41.4]} 53...
Rxg4 {[%clk 0:01:05.3]} 54. h6 {[%clk 0:00:41.2]} 54... Rh4 {[%clk 0:01:03.3]}
55. Rb6+ {[%clk 0:00:40.1]} 55... Ka2 {[%clk 0:01:01.6]} 56. Kd3 {[%clk
0:00:39.4]} 56... Ka1 {[%clk 0:01:00.8]} 57. Kc2 {[%clk 0:00:37]} 57... a2
{[%clk 0:00:57.3]} 58. Ra6 {[%clk 0:00:34.1]} 58... Rh2+ {[%clk 0:00:56.3]} 59.
Kc1 {[%clk 0:00:34.2]} 59... c4 {[%clk 0:00:47.4]} 60. Rg6 {[%clk 0:00:30.1]}
60... Rh1+ {[%clk 0:00:35.7]} 61. Kc2 {[%clk 0:00:27.8]} 61... Rh2+ {[%clk
0:00:36.1]} 62. Kc1 {[%clk 0:00:24.7]} 62... Rh3 {[%clk 0:00:30.7]} 63. h7
{[%clk 0:00:21.2]} 63... Rxc3+ {[%clk 0:00:26]} 64. Kd2 {[%clk 0:00:21.1]} 64...
Rh3 {[%clk 0:00:26]} 65. Kc2 {[%clk 0:00:21.6]} 65... Rh2+ {[%clk 0:00:24.8]}
66. Kc3 {[%clk 0:00:20.3]} 66... Rh3+ {[%clk 0:00:20.6]} 67. Kc2 {[%clk
0:00:20.3]} 67... Rh2+ {[%clk 0:00:21]} 68. Kc3 {[%clk 0:00:20.2]} 68... Rh3+
{[%clk 0:00:17.2]} 69. Kc2 {[%clk 0:00:17.4]} 1/2-1/2

[Event "Early-Titled-Tuesday-Blitz-February-06-2024"]
[Site "Chess.com"]
[Date "2024.02.06"]
[Round "7"]
[White "ilqar_74"]
[Black "SaqoChess_Twitch"]
[Result "0-1"]
[WhiteElo "2785"]
[BlackElo "2621"]
[TimeControl "180+1"]
[EndTime "9:19:02 PST"]
[Termination "SaqoChess_Twitch won on time"]

1. e4 {[%clk 0:03:00.9]} 1... c5 {[%clk 0:02:58.8]} 2. Nf3 {[%clk 0:03:01.4]}
2... d6 {[%clk 0:02:59.1]} 3. d4 {[%clk 0:03:02.1]} 3... cxd4 {[%clk 0:03:00]}
4. Nxd4 {[%clk 0:03:03]} 4... Nf6 {[%clk 0:03:00.7]} 5. Nc3 {[%clk 0:03:03.7]}
5... g6 {[%clk 0:03:01.5]} 6. f3 {[%clk 0:03:03.9]} 6... Bg7 {[%clk 0:03:02.2]}
7. Be3 {[%clk 0:03:04.6]} 7... O-O {[%clk 0:03:03]} 8. Qd2 {[%clk 0:03:05.3]}
8... Nc6 {[%clk 0:03:03.7]} 9. O-O-O {[%clk 0:03:05.9]} 9... d5 {[%clk 0:03:04]}
10. exd5 {[%clk 0:03:06.5]} 10... Nxd5 {[%clk 0:03:04.9]} 11. Nxc6 {[%clk
0:03:07.1]} 11... bxc6 {[%clk 0:03:04.7]} 12. Bd4 {[%clk 0:03:07.8]} 12... e5
{[%clk 0:03:01.4]} 13. Bc5 {[%clk 0:03:07.9]} 13... Be6 {[%clk 0:03:00.8]} 14.
Ne4 {[%clk 0:03:08.4]} 14... Re8 {[%clk 0:02:59]} 15. h4 {[%clk 0:03:01.6]}
15... h6 {[%clk 0:02:59]} 16. h5 {[%clk 0:03:00.1]} 16... g5 {[%clk 0:02:59.2]}
17. Bc4 {[%clk 0:02:59.1]} 17... Qc7 {[%clk 0:02:58.5]} 18. Qf2 {[%clk
0:02:57.5]} 18... Red8 {[%clk 0:02:58.1]} 19. g4 {[%clk 0:02:56]} 19... Nf4
{[%clk 0:02:58.2]} 20. Bxe6 {[%clk 0:02:54.7]} 20... Nxe6 {[%clk 0:02:59.1]} 21.
Rhe1 {[%clk 0:02:54.5]} 21... Rd5 {[%clk 0:02:55.9]} 22. c4 {[%clk 0:02:52.2]}
22... Rd4 {[%clk 0:02:55.9]} 23. Bxd4 {[%clk 0:02:44.3]} 23... exd4 {[%clk
0:02:56]} 24. Rd3 {[%clk 0:02:29.7]} 24... c5 {[%clk 0:02:53]} 25. Red1 {[%clk
0:02:28.2]} 25... a5 {[%clk 0:02:51.4]} 26. Ng3 {[%clk 0:02:21]} 26... Nf4
{[%clk 0:02:39.3]} 27. Ra3 {[%clk 0:02:17.1]} 27... d3 {[%clk 0:02:05.9]} 28.
Ne4 {[%clk 0:02:06.2]} 28... Bd4 {[%clk 0:01:53.1]} 29. Qd2 {[%clk 0:01:58.7]}
29... a4 {[%clk 0:01:52.6]} 30. Rxd3 {[%clk 0:01:51]} 30... Nxd3+ {[%clk
0:01:52.9]} 31. Qxd3 {[%clk 0:01:51.9]} 31... Rb8 {[%clk 0:01:42.6]} 32. Rd2
{[%clk 0:01:48.1]} 32... Qf4 {[%clk 0:01:37.1]} 33. Kb1 {[%clk 0:01:45.2]} 33...
Kg7 {[%clk 0:01:21.2]} 34. Rc2 {[%clk 0:01:27.9]} 34... f5 {[%clk 0:01:15.3]}
35. gxf5 {[%clk 0:01:18.1]} 35... Qxf5 {[%clk 0:01:16.2]} 36. Rd2 {[%clk
0:00:55.8]} 36... Rd8 {[%clk 0:01:02.1]} 37. a3 {[%clk 0:00:45.4]} 37... Bf6
{[%clk 0:00:43.4]} 38. Qc2 {[%clk 0:00:35.7]} 38... Rxd2 {[%clk 0:00:36.7]} 39.
Nxd2 {[%clk 0:00:34.2]} 39... Qe5 {[%clk 0:00:19.9]} 40. Ne4 {[%clk 0:00:31]}
40... Kf7 {[%clk 0:00:09.3]} 41. Nxf6 {[%clk 0:00:29.2]} 41... Qxf6 {[%clk
0:00:10.2]} 42. Qxa4 {[%clk 0:00:21.7]} 42... Qxf3 {[%clk 0:00:08.2]} 43. Qd7+
{[%clk 0:00:21.6]} 43... Kf6 {[%clk 0:00:08]} 44. Qd6+ {[%clk 0:00:20.5]} 44...
Kf5 {[%clk 0:00:08.2]} 45. Qxc5+ {[%clk 0:00:18.8]} 45... Ke4 {[%clk 0:00:07.5]}
46. Qc6+ {[%clk 0:00:12.9]} 46... Ke3 {[%clk 0:00:07.5]} 47. Qc5+ {[%clk
0:00:07.8]} 47... Ke2 {[%clk 0:00:06.8]} 48. Ka2 {[%clk 0:00:05.5]} 48... g4
{[%clk 0:00:06.9]} 49. Qe5+ {[%clk 0:00:06]} 49... Kf1 {[%clk 0:00:06.5]} 50. c5
{[%clk 0:00:05.7]} 50... g3 {[%clk 0:00:06.5]} 51. c6 {[%clk 0:00:04.4]} 51...
g2 {[%clk 0:00:06.2]} 52. c7 {[%clk 0:00:04.8]} 52... Qf7+ {[%clk 0:00:04.1]}
53. b3 {[%clk 0:00:03.6]} 53... Qf2+ {[%clk 0:00:04.1]} 54. Qb2 {[%clk
0:00:03.5]} 54... Qc5 {[%clk 0:00:03]} 55. Qb1+ {[%clk 0:00:02.7]} 55... Kf2
{[%clk 0:00:03]} 56. Qb2+ {[%clk 0:00:03.3]} 56... Kg3 {[%clk 0:00:03.5]} 57.
Qg7+ {[%clk 0:00:03.5]} 57... Kh2 {[%clk 0:00:03.8]} 58. Qb2 {[%clk 0:00:03]}
58... Kh1 {[%clk 0:00:04]} 59. b4 {[%clk 0:00:01.6]} 59... Qc4+ {[%clk
0:00:03.9]} 60. Qb3 {[%clk 0:00:02]} 60... Qxc7 {[%clk 0:00:04.6]} 61. Qd3
{[%clk 0:00:02.5]} 61... g1=Q {[%clk 0:00:04.6]} 0-1